lending/lending_fUSD_20241025
["ID","MTS","AMOUNT","RATE_DAILY","PERIOD"]
[340813648,1729866675782,-188.02,0.000677,69]
[340813649,1729866675791,-188.02,0.000677,69]
[340813650,1729866675801,-360.0,0.000678,120]
[340813651,1729866675810,-999.97196082,0.000678,120]
[340813652,1729866675820,-8337.11916997,0.000678,120]
[340813653,1729866675830,-800.0,0.00067826,120]
[340813654,1729866675839,-1000.0,0.00067846,120]
[340813655,1729866675849,-507.31143631,0.00067849,120]
[340813656,1729866675859,-21880.95443594,0.0006789,120]
[340813657,1729866675868,-4036.28692572,0.0006789,120]
[340813658,1729866675878,-250.0,0.000679,30]
[340813659,1729866675888,-500.0,0.00067937,3]
[340813660,1729866675897,-2000.0,0.00067945,30]
[340813661,1729866675907,-500.0,0.00067946,3]
[340813662,1729866675917,-500.0,0.00067955,3]
[340813663,1729866675926,-500.0,0.00067964,3]
[340813664,1729866675936,-500.0,0.00067973,3]
[340813665,1729866675946,-900.0,0.00067973,120]
[340813666,1729866675956,-500.0,0.00067981,3]
[340813667,1729866675966,-500.0,0.0006799,3]
[340813668,1729866675976,-500.0,0.00067999,3]
[340813669,1729866675986,-50000.0,0.00068,57]
[340813670,1729866675996,-50000.0,0.00068,59]
[340813671,1729866676006,-1000.0,0.00068,120]
[340813672,1729866676018,-500000.0,0.00068,120]
[340813673,1729866676028,-932.35101427,0.00068,120]
[340813674,1729866676038,-1000000.0,0.00068,120]
[340813675,1729866676047,-500000.0,0.00068,120]
[340813676,1729866676056,-500000.0,0.00068,120]
[340813677,1729866676066,-160.0,0.00068,120]
[340813678,1729866676076,-294.47891703,0.00068,120]
[340813679,1729866676085,-5000.0,0.00068,120]
[340813680,1729866676095,-5000.0,0.00068,120]
[340813681,1729866676105,-5000.0,0.00068,120]
[340813682,1729866676115,-286.19399463,0.00068,60]
[340813683,1729866676124,-15297.0,0.00068,120]
[340813684,1729866676134,-8875.0,0.00068,120]
[340813685,1729866676143,-3678.0,0.00068,120]
[340813686,1729866676153,-2541.0,0.00068,120]
[340813687,1729866676163,-3492.0,0.00068,120]
[340813688,1729866676172,-900.0,0.00068151,120]
[340813689,1729866676182,-150.0,0.00068212,120]
[340813690,1729866676191,-2000.0,0.00068219,30]
[340813691,1729866676200,-150.0,0.00068221,120]
[340813692,1729866676210,-150.0,0.00068248,120]
[340813693,1729866676220,-150.0,0.00068285,120]
[340813694,1729866676229,-900.0,0.00068339,120]
[340813695,1729866676239,-285.56557239,0.00068394,120]
[340813696,1729866676248,-374.32,0.00068425,2]
[340813697,1729866676258,-150.0,0.00068471,120]
[340813698,1729866676269,-500.0,0.00068493,120]
[340813699,1729866676279,-500.0,0.00068493,120]
[340813700,1729866676288,-500.0,0.00068493,120]
[340813701,1729866676297,-500.0,0.00068493,120]
[340813702,1729866676307,-500.0,0.00068493,120]
[340813703,1729866676319,-2000.0,0.00068493,30]
[340813704,1729866676328,-309.66,0.000685,120]
[340813705,1729866676339,-700.0,0.00068503,120]
[340813706,1729866676348,-2201.99,0.00068509,120]
[340813707,1729866676357,-700.0,0.00068564,120]
[340813708,1729866676367,-506.42893001,0.00068576,120]
[340813709,1729866676376,-150.0,0.00068581,120]
[340813710,1729866676385,-1979.8,0.000686,120]
[340813711,1729866676394,-150.0,0.00068603,120]
[340813712,1729866676403,-50253.0,0.000687,30]
[340813713,1729866676413,-150.0,0.00068701,120]
[340813714,1729866676422,-500.0,0.00068765,120]
[340813715,1729866676432,-1111.515,0.000688,120]
[340813716,1729866676441,-900.0,0.00068853,120]
[340813717,1729866676451,-110860.32892138,0.000689,120]
[340813718,1729866676461,-800.0,0.00068923,120]
[340813719,1729866676470,-2027431.28,0.00068942,120]
[340813720,1729866676550,-3282.77,0.00068962,120]
[340813721,1729866676560,-50000.0,0.00069,56]
[340813722,1729866676570,-50000.0,0.00069,57]
[340813723,1729866676580,-500000.0,0.00069,120]
[340813724,1729866676590,-336988.38134653,0.00069,120]
[340813725,1729866683910,865.75367555,0.00042741,120]
[340813739,1729867832027,-970.84645821,0.00015242,2]
[340813740,1729867832036,-268.23212965,0.00015262,2]
[340813741,1729867832047,-258.20269764,0.00015262,2]
[340813742,1729867832057,-526.43482729,0.00015282,2]
[340813743,1729867832066,-178.34,0.00015342,2]
[340813744,1729867832076,-162.54,0.00015342,2]
[340813745,1729867832085,-150.0,0.00015381,2]
[340813746,1729867832095,-970.8464582,0.00030448,2]
[340813747,1729867832105,-162.54,0.00030548,2]
[340813748,1729867832114,-1000.0,0.00041096,120]
[340813749,1729867832123,-16.14601687,0.00041507,120]
[340813750,1729867832238,-983.85398313,0.00041507,120]
[340813751,1729867832247,-1000.0,0.00041918,120]
[340813752,1729867832257,-1000.0,0.00042329,120]
[340813753,1729867832267,-1574.75880402,0.0004274,120]
[340813754,1729867832276,-228.66208687,0.00042995,30]
[340813755,1729867832286,-497.406755,0.0004306,5]
[340813756,1729867832295,-461.461158,0.00045,61]
[340813757,1729867832304,-162.54,0.00045753,2]
[340813758,1729867832314,-1282.56,0.00051554,7]
[340813759,1729867832323,-5597.26,0.00051554,7]
[340813761,1729867832332,-4105.45281988,0.00051554,7]
[340813763,1729867832344,-1777.22718012,0.00051554,7]
[340813765,1729867832354,-5903.06,0.00051554,7]
[340813767,1729867832363,-5895.45,0.00051554,7]
[340813769,1729867832372,-5886.21,0.00051554,7]
[340813771,1729867832382,-5358.875,0.00051954,2]
[340813772,1729867832391,-318.18,0.00052052,2]
[340813773,1729867832401,-500.0,0.00052054,120]
[340813775,1729867832410,-529.43842789,0.00052054,120]
[340813776,1729867832419,-500.0,0.00052054,120]
[340813778,1729867832429,-500.0,0.00052054,120]
[340813779,1729867832438,-569.92,0.00052054,120]
[340813780,1729867832447,-536.22,0.00052054,7]
[340813781,1729867832456,-500.0,0.00052054,120]
[340813782,1729867832465,-500.0,0.00052054,120]
[340813783,1729867832475,-90.04768841,0.00052054,120]
[340813784,1729867832566,-409.95231159,0.00052054,120]
[340813785,1729867832576,-500.0,0.00052054,120]
[340813786,1729867832585,-575.05362788,0.00052054,120]
[340813787,1729867832595,-766.93,0.00052054,120]
[340813788,1729867832604,-500.0,0.00052054,120]
[340813789,1729867832613,-500.0,0.00052054,120]
[340813790,1729867832623,-525.65,0.00052054,120]
[340813791,1729867832633,-500.0,0.00052054,120]
[340813792,1729867832642,-500.0,0.00052054,2]
[340813793,1729867832651,-506.87162609,0.00052054,120]
[340813794,1729867832660,-500.0,0.00052054,120]
[340813795,1729867832669,-500.0,0.00052054,120]
[340813796,1729867832678,-500.0,0.00052054,120]
[340813797,1729867832687,-500.0,0.00052054,120]
[340813798,1729867832696,-500.0,0.00052054,120]
[340813799,1729867832705,-500.0,0.00052054,120]
[340813800,1729867832714,-500.0,0.00052054,120]
[340813801,1729867832723,-500.0,0.00052054,120]
[340813802,1729867832732,-500.0,0.00052054,120]
[340813803,1729867832742,-850.32,0.00052054,120]
[340813804,1729867832751,-500.0,0.00052054,120]
[340813805,1729867832760,-199.1696856,0.00052054,120]
[340813806,1729867832769,-500.0,0.00052054,120]
[340813807,1729867832778,-500.0,0.00052054,120]
[340813808,1729867832787,-500.0,0.00052054,120]
[340813809,1729867832797,-500.0,0.00052054,120]
[340813810,1729867832806,-500.0,0.00052054,120]
[340813811,1729867832815,-452.04127365,0.00052328,120]
[340813812,1729867832825,-500.0,0.00052328,120]
[340813813,1729867832834,-569.92,0.00052328,120]
[340813814,1729867832843,-536.22,0.00052328,7]
[340813815,1729867832855,-500.0,0.00052328,120]
[340813816,1729867832864,-500.0,0.00052328,120]
[340813817,1729867832873,-500.0,0.00052328,120]
[340813818,1729867832883,-500.0,0.00052328,120]
[340813819,1729867832892,-766.93,0.00052328,120]
[340813820,1729867832905,-500.0,0.00052328,120]
[340813821,1729867832915,-540.35,0.00052328,120]
[340813822,1729867832924,-525.65,0.00052328,120]
[340813823,1729867832934,-500.0,0.00052328,120]
[340813824,1729867832944,-500.0,0.00052328,2]
[340813825,1729867832953,-500.0,0.00052328,120]
[340813826,1729867832963,-500.0,0.00052328,120]
[340813827,1729867832973,-500.0,0.00052328,120]
[340813828,1729867832982,-500.0,0.00052328,120]
[340813829,1729867832992,-217.99979692,0.00052328,120]
[340813830,1729867833005,-282.00020308,0.00052328,120]
[340813831,1729867833015,-500.0,0.00052328,120]
[340813832,1729867833025,-500.0,0.00052328,120]
[340813833,1729867833034,-500.0,0.00052328,120]
[340813834,1729867833043,-500.0,0.00052328,120]
[340813835,1729867833053,-850.32,0.00052328,120]
[340813836,1729867833062,-510.17516349,0.00052328,120]
[340813837,1729867833072,-500.0,0.00052328,120]
[340813838,1729867833082,-500.0,0.00052328,120]
[340813839,1729867833091,-500.0,0.00052328,120]
[340813840,1729867833101,-500.0,0.00052328,120]
[340813841,1729867833114,-500.0,0.00052328,120]
[340813842,1729867833124,-309.36,0.000524,120]
[340813843,1729867833134,-1003.56,0.000524,120]
[340813844,1729867833143,-232.59,0.00052592,10]
[340813845,1729867833153,-193.82,0.00052592,10]
[340813846,1729867833163,-500.0,0.00052602,120]
[340813847,1729867833172,-569.92,0.00052602,120]
[340813848,1729867833181,-536.22,0.00052602,7]
[340813849,1729867833191,-178.59817668,0.00052602,120]
[340813850,1729867833201,-618.75334915,0.00052602,120]
[340813851,1729867833211,-500.0,0.00052602,120]
[340813852,1729867833221,-500.0,0.00052602,120]
[340813853,1729867833230,-766.93,0.00052602,120]
[340813854,1729867833240,-500.0,0.00052602,120]
[340813855,1729867833249,-525.65,0.00052602,120]
[340813856,1729867833258,-500.0,0.00052602,120]
[340813857,1729867833268,-500.0,0.00052602,2]
[340813858,1729867833278,-500.0,0.00052602,120]
[340813859,1729867833287,-500.0,0.00052602,120]
[340813860,1729867833297,-496.77418536,0.00052602,120]
[340813861,1729867833306,-336.98314945,0.00052602,120]
[340813862,1729867833316,-500.0,0.00052602,120]
[340813863,1729867833326,-500.0,0.00052602,120]
[340813864,1729867833335,-500.0,0.00052602,120]
[340813865,1729867833345,-498.84972765,0.00052602,120]
[340813866,1729867833355,-500.0,0.00052602,120]
[340813867,1729867833367,-850.32,0.00052602,120]
[340813868,1729867833376,-500.0,0.00052602,120]
[340813869,1729867833390,-500.0,0.00052602,120]
[340813870,1729867833399,-500.0,0.00052602,120]
[340813871,1729867833408,-463.03283351,0.00052602,120]
[340813872,1729867833418,-500.0,0.00052746,5]
[340813873,1729867833428,-500.0,0.00052755,5]
[340813874,1729867833437,-500.0,0.00052763,5]
[340813875,1729867833448,-500.0,0.00052772,5]
[340813876,1729867833457,-500.0,0.00052781,5]
[340813877,1729867833468,-500.0,0.0005279,5]
[340813878,1729867833479,-500.0,0.00052799,5]
[340813879,1729867833488,-700.0,0.00052807,60]
[340813880,1729867833498,-800.0,0.00052819,60]
[340813881,1729867833508,-152.69,0.00052868,120]
[340813882,1729867833518,-500.0,0.00052876,120]
[340813883,1729867833528,-569.92,0.00052876,120]
[340813884,1729867833538,-536.22,0.00052876,7]
[340813885,1729867833548,-500.0,0.00052876,120]
[340813886,1729867833557,-506.23651302,0.00052876,120]
[340813887,1729867833567,-766.93,0.00052876,120]
[340813888,1729867833576,-500.0,0.00052876,120]
[340813889,1729867833586,-525.65,0.00052876,120]
[340813890,1729867833595,-210.30355657,0.00052876,120]
[340813891,1729867833607,-500.0,0.00052876,2]
[340813892,1729867833617,-500.0,0.00052876,120]
[340813893,1729867833627,-500.0,0.00052876,120]
[340813894,1729867833637,-333.43893434,0.00052876,120]
[340813895,1729867833647,-500.0,0.00052876,120]
[340813896,1729867833657,-500.0,0.00052876,120]
[340813897,1729867833667,-500.0,0.00052876,120]
[340813898,1729867833676,-850.32,0.00052876,120]
[340813899,1729867833686,-500.0,0.00052876,120]
[340813900,1729867833696,-471.50144502,0.00052876,120]
[340813901,1729867833706,-500.0,0.00052876,120]
[340813902,1729867833716,-1500.0,0.0005303,120]
[340813903,1729867833726,-250.0,0.00053066,120]
[340813904,1729867833735,-500.0,0.00053091,60]
[340813905,1729867833745,-700.0,0.00053113,60]
[340813906,1729867833755,-171.69,0.00053131,2]
[340813907,1729867833764,-500.0,0.0005315,120]
[340813908,1729867833774,-569.92,0.0005315,120]
[340813909,1729867833783,-536.22,0.0005315,7]
[340813910,1729867833792,-500.0,0.0005315,120]
[340813911,1729867833802,-766.93,0.0005315,120]
[340813912,1729867833812,-500.0,0.0005315,120]
[340813913,1729867833821,-525.65,0.0005315,120]
[340813914,1729867833830,-500.0,0.0005315,2]
[340813915,1729867833840,-500.0,0.0005315,120]
[340813916,1729867833849,-500.0,0.0005315,120]
[340813917,1729867833860,-500.0,0.0005315,120]
[340813918,1729867833869,-500.0,0.0005315,120]
[340813919,1729867833879,-500.0,0.0005315,120]
[340813920,1729867833889,-850.32,0.0005315,120]
[340813921,1729867833900,-500.0,0.0005315,120]
[340813922,1729867833911,-500.0,0.0005315,120]
[340813923,1729867833921,-800.0,0.00053248,60]
[340813924,1729867833931,-700.0,0.00053304,60]
[340813925,1729867833940,-700.0,0.00053384,60]
[340813926,1729867833950,-500.0,0.00053424,120]
[340813927,1729867833960,-569.92,0.00053424,120]
[340813928,1729867833970,-536.22,0.00053424,7]
[340813929,1729867833979,-500.0,0.00053424,120]
[340813930,1729867833989,-766.93,0.00053424,120]
[340813931,1729867833998,-500.0,0.00053424,120]
[340813932,1729867834008,-525.65,0.00053424,120]
[340813933,1729867834017,-500.0,0.00053424,2]
[340813934,1729867834027,-500.0,0.00053424,120]
[340813935,1729867834037,-500.0,0.00053424,120]
[340813936,1729867834047,-500.0,0.00053424,120]
[340813937,1729867834056,-500.0,0.00053424,120]
[340813938,1729867834065,-500.0,0.00053424,120]
[340813939,1729867834075,-850.32,0.00053424,120]
[340813940,1729867834084,-500.0,0.00053424,120]
[340813941,1729867834094,-387.52670758,0.00053424,120]
[340813942,1729867834103,-500.0,0.00053452,60]
[340813943,1729867834114,-1003.56,0.0005349,120]
[340813944,1729867834123,-500.0,0.00053523,60]
[340813945,1729867834244,-500.0,0.00053607,60]
[340813946,1729867834254,-309.36,0.0005365,120]
[340813947,1729867834265,-500.0,0.00053698,120]
[340813948,1729867834274,-569.92,0.00053698,120]
[340813949,1729867834284,-536.22,0.00053698,7]
[340813950,1729867834294,-500.0,0.00053698,120]
[340813951,1729867834304,-766.93,0.00053698,120]
[340813952,1729867834314,-500.0,0.00053698,120]
[340813953,1729867834326,-525.65,0.00053698,120]
[340813954,1729867834338,-510.71362825,0.00053698,2]
[340813955,1729867834350,-500.0,0.00053698,120]
[340813956,1729867834362,-500.0,0.00053698,120]
[340813957,1729867834372,-500.0,0.00053698,120]
[340813958,1729867834381,-500.0,0.00053698,120]
[340813959,1729867834390,-500.0,0.00053698,60]
[340813960,1729867834400,-500.0,0.00053698,120]
[340813961,1729867834409,-850.32,0.00053698,120]
[340813962,1729867834419,-500.0,0.00053698,120]
[340813963,1729867834429,-700.0,0.00053841,60]
[340813964,1729867834439,-500.0,0.00053972,120]
[340813965,1729867834449,-569.92,0.00053972,120]
[340813966,1729867834458,-536.22,0.00053972,7]
[340813967,1729867834467,-500.0,0.00053972,120]
[340813968,1729867834477,-766.93,0.00053972,120]
[340813969,1729867834486,-596.38652665,0.00053972,120]
[340813970,1729867834496,-525.65,0.00053972,120]
[340813971,1729867834506,-500.0,0.00053972,120]
[340813972,1729867834516,-500.0,0.00053972,120]
[340813973,1729867834525,-500.0,0.00053972,120]
[340813974,1729867834535,-500.0,0.00053972,120]
[340813975,1729867834544,-500.0,0.00053972,120]
[340813976,1729867834554,-850.32,0.00053972,120]
[340813977,1729867834563,-500.0,0.00053972,120]
[340813978,1729867834573,-500.0,0.00054107,60]
[340813979,1729867834583,-900.0,0.00054128,60]
[340813980,1729867834593,-500.0,0.00054246,120]
[340813981,1729867834602,-569.92,0.00054246,120]
[340813982,1729867834613,-536.22,0.00054246,7]
[340813983,1729867834623,-500.0,0.00054246,120]
[340813984,1729867834633,-766.93,0.00054246,120]
[340813985,1729867834643,-525.65,0.00054246,120]
[340813986,1729867834653,-500.0,0.00054246,120]
[340813987,1729867834663,-500.0,0.00054246,120]
[340813988,1729867834673,-500.0,0.00054246,120]
[340813989,1729867834683,-500.0,0.00054246,120]
[340813990,1729867834693,-500.0,0.00054246,120]
[340813991,1729867834703,-850.32,0.00054246,120]
[340813992,1729867834712,-500.0,0.00054246,120]
[340813993,1729867834722,-318.18,0.00054316,2]
[340813994,1729867834732,-629.39725797,0.00054355,60]
[340813995,1729867834742,-500.0,0.0005452,120]
[340813996,1729867834753,-569.92,0.0005452,120]
[340813997,1729867834763,-536.22,0.0005452,7]
[340813998,1729867834774,-500.0,0.0005452,120]
[340813999,1729867834783,-766.93,0.0005452,120]
[340814000,1729867834793,-525.65,0.0005452,120]
[340814001,1729867834803,-500.0,0.0005452,120]
[340814002,1729867834813,-500.0,0.0005452,120]
[340814003,1729867834823,-500.0,0.0005452,120]
[340814004,1729867834833,-500.0,0.0005452,120]
[340814005,1729867834842,-584.71490834,0.0005452,120]
[340814006,1729867834852,-850.32,0.0005452,120]
[340814007,1729867834864,-500.0,0.0005452,120]
[340814008,1729867834874,-1003.56,0.0005458,120]
[340814009,1729867834883,-401.0,0.000547,44]
[340814010,1729867834894,-150.0,0.000547,120]
[340814011,1729867834906,-500.0,0.00054794,120]
[340814012,1729867834916,-569.92,0.00054794,120]
[340814013,1729867834926,-536.22,0.00054794,7]
[340814014,1729867834936,-500.0,0.00054794,120]
[340814015,1729867834947,-766.93,0.00054794,120]
[340814016,1729867834958,-525.65,0.00054794,120]
[340814017,1729867834968,-206.34656329,0.00054794,120]
[340814018,1729867834978,-500.0,0.00054794,120]
[340814019,1729867834988,-500.0,0.00054794,120]
[340814020,1729867834998,-500.0,0.00054794,120]
[340814021,1729867835007,-850.32,0.00054794,120]
[340814022,1729867835017,-500.0,0.00054794,120]
[340814023,1729867835026,-500.0,0.00054794,120]
[340814024,1729867835036,-504.04917278,0.00054794,120]
[340814025,1729867835045,-153.0,0.00054795,120]
[340814026,1729867835055,-942.0,0.00054795,120]
[340814027,1729867835064,-653.0,0.00054795,120]
[340814028,1729867835074,-508.0,0.00054795,120]
[340814029,1729867835083,-554.0,0.00054795,120]
[340814030,1729867835093,-508.0,0.00054795,120]
[340814031,1729867835102,-900.0,0.00054802,60]
[340814032,1729867835115,-500.0,0.00054845,60]
[340814033,1729867835124,-562.695549,0.000549,120]
[340814034,1729867835134,-500.0,0.00054978,60]
[340814035,1729867835145,-456.28357946,0.00055068,120]
[340814036,1729867835155,-569.92,0.00055068,120]
[340814037,1729867835165,-536.22,0.00055068,7]
[340814038,1729867835174,-500.0,0.00055068,120]
[340814039,1729867835185,-766.93,0.00055068,120]
[340814040,1729867835196,-525.65,0.00055068,120]
[340814041,1729867835206,-407.51360132,0.00055068,120]
[340814042,1729867835216,-500.0,0.00055068,120]
[340814043,1729867835225,-500.0,0.00055068,120]
[340814044,1729867835235,-850.32,0.00055068,120]
[340814045,1729867835246,-500.0,0.00055068,120]
[340814046,1729867835257,-500.0,0.00055297,120]
[340814047,1729867835267,-569.92,0.00055342,120]
[340814048,1729867835276,-536.22,0.00055342,7]
[340814049,1729867835287,-500.0,0.00055342,120]
[340814050,1729867835296,-766.93,0.00055342,120]
[340814051,1729867835306,-525.65,0.00055342,120]
[340814052,1729867835316,-500.0,0.00055342,120]
[340814053,1729867835325,-500.0,0.00055342,120]
[340814054,1729867835335,-850.32,0.00055342,120]
[340814055,1729867835344,-500.0,0.00055342,120]
[340814056,1729867835354,-500.0,0.00055367,120]
[340814057,1729867835365,-569.92,0.00055616,120]
[340814058,1729867835374,-536.22,0.00055616,7]
[340814059,1729867835383,-500.0,0.00055616,120]
[340814060,1729867835393,-766.93,0.00055616,120]
[340814061,1729867835403,-525.65,0.00055616,120]
[340814062,1729867835412,-342.62995516,0.00055616,120]
[340814063,1729867835421,-500.0,0.00055616,120]
[340814064,1729867835430,-850.32,0.00055616,120]
[340814065,1729867835440,-529.41307071,0.00055616,120]
[340814066,1729867835449,-700.0,0.00055631,120]
[340814067,1729867835459,-1003.56,0.0005567,120]
[340814068,1729867835468,-569.92,0.0005589,120]
[340814069,1729867835477,-536.22,0.0005589,7]
[340814070,1729867835486,-500.0,0.0005589,120]
[340814071,1729867835496,-766.93,0.0005589,120]
[340814072,1729867835505,-525.65,0.0005589,120]
[340814073,1729867835515,-500.0,0.0005589,120]
[340814074,1729867835524,-800.0,0.0005589,120]
[340814075,1729867835534,-850.32,0.0005589,120]
[340814076,1729867835544,-500.0,0.00055902,120]
[340814077,1729867835553,-1026.63696701,0.00056,57]
[340814078,1729867835563,-800.0,0.0005601,120]
[340814079,1729867835572,-800.0,0.0005603,120]
[340814080,1729867835581,-500.0,0.00056117,120]
[340814081,1729867835591,-569.92,0.00056164,120]
[340814082,1729867835601,-536.22,0.00056164,7]
[340814083,1729867835611,-500.0,0.00056164,120]
[340814084,1729867835620,-232.88092681,0.00056164,120]
[340814085,1729867835634,-534.04907319,0.00056164,120]
[340814086,1729867835644,-525.65,0.00056164,120]
[340814087,1729867835653,-500.0,0.00056164,120]
[340814088,1729867835663,-850.32,0.00056164,120]
[340814089,1729867835672,-800.0,0.00056181,120]
[340814090,1729867835681,-1000.0,0.00056205,120]
[340814091,1729867835691,-660.47990637,0.00056293,120]
[340814092,1729867835703,-239.52009363,0.00056293,120]
[340814093,1729867835713,-800.0,0.00056346,120]
[340814094,1729867835722,-500.0,0.00056375,120]
[340814095,1729867835731,-192.18642374,0.00056438,120]
[340814097,1729867838163,-377.73357626,0.00056438,120]
[340814098,1729867838173,-536.22,0.00056438,7]
[340814099,1729867838183,-579.16965631,0.00056438,120]
[340814100,1729867838193,-766.93,0.00056438,120]
[340814101,1729867838202,-525.65,0.00056438,120]
[340814102,1729867838212,-500.0,0.00056438,120]
[340814103,1729867838223,-850.32,0.00056438,120]
[340814104,1729867838234,-700.0,0.00056494,120]
[340814105,1729867838245,-318.18,0.0005658,2]
[340814106,1729867838255,-250.0,0.00056648,120]
[340814107,1729867838264,-500.0,0.00056655,120]
[340814108,1729867838274,-700.0,0.00056673,120]
[340814109,1729867838284,-700.0,0.00056704,120]
[340814110,1729867838294,-569.92,0.00056712,120]
[340814111,1729867838304,-536.22,0.00056712,7]
[340814112,1729867838313,-766.93,0.00056712,120]
[340814113,1729867838324,-525.65,0.00056712,120]
[340814114,1729867838333,-484.8079973,0.00056712,120]
[340814115,1729867838343,-850.32,0.00056712,120]
[340814116,1729867838354,-700.0,0.00056754,120]
[340814117,1729867838365,-800.0,0.00056759,120]
[340814118,1729867838374,-1037.208523,0.0005676,120]
[340814119,1729867838383,-2501.13605099,0.00056947,120]
[340814120,1729867838392,-167.0,0.00056952,2]
[340814121,1729867838401,-569.92,0.00056986,120]
[340814122,1729867838412,-536.22,0.00056986,7]
[340814123,1729867838421,-766.93,0.00056986,120]
[340814124,1729867838432,-525.65,0.00056986,120]
[340814125,1729867838441,-850.32,0.00056986,120]
[340814126,1729867838451,-900.0,0.00056989,120]
[340814127,1729867838460,-700.0,0.00057009,120]
[340814128,1729867838470,-900.0,0.0005703,120]
[340814129,1729867838479,-500.0,0.00057236,120]
[340814130,1729867838489,-500.0,0.00057256,120]
[340814131,1729867838498,-569.92,0.0005726,120]
[340814132,1729867838507,-536.22,0.0005726,7]
[340814133,1729867838516,-766.93,0.0005726,120]
[340814134,1729867838525,-525.65,0.0005726,120]
[340814135,1729867838535,-176.81528764,0.0005726,120]
[340814136,1729867838547,-673.50471236,0.0005726,120]
[340814137,1729867838555,-800.0,0.0005731,120]
[340814138,1729867838565,-1499.5773,0.00057434,2]
[340814139,1729867838574,-500.0,0.00057519,120]
[340814140,1729867838583,-175.70542959,0.00057534,112]
[340814141,1729867838592,-569.92,0.00057534,120]
[340814142,1729867838601,-536.22,0.00057534,7]
[340814143,1729867838611,-766.93,0.00057534,120]
[340814144,1729867838620,-525.65,0.00057534,120]
[340814145,1729867838629,-850.32,0.00057534,120]
[340814146,1729867838639,-700.0,0.00057611,120]
[340814147,1729867838651,-900.0,0.00057618,120]
[340814148,1729867838662,-800.0,0.00057647,120]
[340814149,1729867838673,-800.0,0.00057729,120]
[340814150,1729867838682,-500.0,0.00057756,120]
[340814151,1729867838691,-155.0,0.00057808,25]
[340814152,1729867838700,-569.92,0.00057808,120]
[340814153,1729867838709,-536.22,0.00057808,7]
[340814154,1729867838719,-766.93,0.00057808,120]
[340814155,1729867838728,-525.65,0.00057808,120]
[340814156,1729867838736,-850.32,0.00057808,120]
[340814157,1729867838746,-800.0,0.0005786,120]
[340814158,1729867838757,-2501.13605099,0.00057947,120]
[340814159,1729867838765,-569.92,0.00058082,120]
[340814160,1729867838775,-536.22,0.00058082,7]
[340814161,1729867838784,-766.93,0.00058082,120]
[340814162,1729867838795,-525.65,0.00058082,120]
[340814163,1729867838804,-850.32,0.00058082,120]
[340814164,1729867838813,-500.0,0.00058084,120]
[340814165,1729867838823,-700.0,0.00058113,120]
[340814166,1729867838832,-500.0,0.00058174,120]
[340814167,1729867838841,-800.0,0.00058183,120]
[340814169,1729867838850,-570.10241005,0.00058356,120]
[340814171,1729867838860,-536.42465195,0.00058356,7]